fUST/lending_fUST_20240614
["ID","MTS","AMOUNT","RATE_DAILY","PERIOD"]
[329442330,1718345599878,317.68209983,9.999e-05,2]
[329442332,1718345753750,155.00930056,9.999e-05,2]
[329442333,1718345959168,6447.45226924,0.0001399,2]
[329442334,1718345959246,18452.54773076,0.0001399,2]
[329442335,1718346067899,208.51418542,9.999e-05,2]
[329442353,1718346514667,-1000.0,0.00027879,7]
[329442356,1718346578819,7825.2260103,0.00013845,2]
[329442357,1718346581379,-377.7213358,0.00014795,2]
[329442358,1718346581457,-377.7213358,0.00014795,2]
[329442359,1718346581543,-377.7213358,0.00014795,2]
[329442360,1718346581756,-377.7213358,0.00014795,2]
[329442361,1718346606090,-407.93904267,0.00014793,2]
[329442362,1718346606151,-407.93904267,0.00014793,2]
[329442363,1718346606218,-220.23496928,0.00014793,2]
[329442399,1718346635607,-522.8295853,0.00014792,2]
[329442401,1718346635624,-2121.5355082,0.00014792,2]
[329442403,1718346635638,-959.98693634,0.00014793,2]
[329442405,1718346635663,-2038.11981352,0.00014794,2]
[329442407,1718346635688,-1314.25924465,0.000148,2]
[329442410,1718346635718,-300.0,0.0001489,2]
[329442412,1718346635739,-42129.39403351,0.00014891,2]
[329442414,1718346635762,-2322.92022354,0.000149,2]
[329442416,1718346635782,-566.5380392,0.00014964,2]
[329442418,1718346635828,-274.12238375,0.00014997,2]
[329442420,1718346635841,-193.30026587,0.00014997,2]
[329442422,1718346635855,-1692.33793104,0.00015,2]
[329442424,1718346635880,-2322.92022353,0.00015643,2]
[329442426,1718346635892,-235.2325012,0.00015841,2]
[329442428,1718346635903,-190.3183976,0.00016063,2]
[329442430,1718346635916,-287.670103,0.00016164,2]
[329442432,1718346635930,-420.0,0.00016298,2]
[329442434,1718346635955,-2322.92022353,0.00016386,2]
[329442436,1718346635967,-500.0,0.00016438,2]
[329442438,1718346635979,-500.0,0.00016438,2]
[329442440,1718346635994,-516.85319465,0.00016438,2]
[329442442,1718346636005,-500.0,0.00016438,2]
[329442444,1718346636017,-500.0,0.00016438,2]
[329442446,1718346636031,-500.0,0.00016438,2]
[329442449,1718346636047,-504.8245101,0.00016438,2]
[329442451,1718346636062,-500.0,0.00016438,2]
[329442453,1718346636074,-504.34727833,0.00016438,2]
[329442455,1718346636088,-500.0,0.00016438,2]
[329442457,1718346636115,-500.0,0.00016438,2]
[329442459,1718346636150,-500.0,0.00016438,2]
[329442461,1718346636165,-500.0,0.00016438,2]
[329442463,1718346636178,-500.0,0.00016438,2]
[329442465,1718346636228,-500.0,0.00016438,2]
[329442467,1718346636241,-505.09838523,0.00016438,2]
[329442469,1718346636253,-534.787168,0.00016438,2]
[329442471,1718346636272,-500.0,0.00016438,2]
[329442473,1718346636283,-535.12747243,0.00016438,2]
[329442475,1718346636322,-500.0,0.00016438,2]
[329442477,1718346636335,-500.0,0.00016438,2]
[329442479,1718346636355,-775.07,0.00016438,2]
[329442481,1718346636369,-515.0657579,0.00016438,2]
[329442482,1718346636384,-500.0,0.00016438,2]
[329442483,1718346636424,-500.0,0.00016438,2]
[329442484,1718346636450,-512.86395577,0.00016438,2]
[329442485,1718346636462,-974.38,0.00016438,2]
[329442486,1718346636496,-500.0,0.00016438,2]
[329442487,1718346636517,-500.0,0.00016438,2]
[329442488,1718346636548,-500.0,0.00016438,2]
[329442489,1718346636586,-500.0,0.00016438,2]
[329442490,1718346636604,-500.0,0.00016438,2]
[329442491,1718346636623,-264.28091185,0.00016438,2]
[329442492,1718346636645,-500.0,0.00016438,2]
[329442493,1718346636670,-500.0,0.00016438,2]
[329442494,1718346636701,-500.0,0.00016438,2]
[329442495,1718346636715,-545.7193747,0.00016438,2]
[329442496,1718346636748,-898.56,0.00016438,2]
[329442497,1718346636767,-500.0,0.00016438,2]
[329442498,1718346636810,-580.7,0.00016438,2]
[329442499,1718346636832,-500.0,0.00016438,2]
[329442500,1718346636854,-500.0,0.00016438,2]
[329442501,1718346636868,-2249.44,0.00016438,2]
[329442502,1718346636900,-421.24683593,0.00016438,2]
[329442503,1718346636929,-510.49149408,0.00016438,2]
[329442504,1718346636959,-1667.09,0.00016438,2]
[329442505,1718346636972,-500.0,0.00016438,2]
[329442506,1718346637011,-500.0,0.00016438,2]
[329442507,1718346637039,-500.0,0.00016438,2]
[329442508,1718346637051,-500.0,0.00016438,2]
[329442509,1718346637068,-500.0,0.00016438,2]
[329442510,1718346637101,-1831.41,0.00016438,2]
[329442511,1718346637117,-1170.77,0.00016438,2]
[329442512,1718346637136,-508.31216586,0.00016438,2]
[329442513,1718346637149,-500.0,0.00016438,2]
[329442514,1718346637163,-295.44668912,0.000165,2]
[329442515,1718346637178,-275.75376351,0.000165,2]
[329442516,1718346637191,-172.99792653,0.00016712,2]
[329442517,1718346637209,-500.0,0.00016712,2]
[329442518,1718346637248,-500.0,0.00016712,2]
[329442519,1718346637272,-500.0,0.00016712,2]
[329442520,1718346637294,-624.7672762,0.00016712,2]
[329442521,1718346637307,-500.0,0.00016712,2]
[329442522,1718346637319,-500.0,0.00016712,2]
[329442523,1718346637334,-500.0,0.00016712,2]
[329442524,1718346637354,-500.0,0.00016712,2]
[329442525,1718346637367,-500.0,0.00016712,2]
[329442526,1718346637378,-500.0,0.00016712,2]
[329442527,1718346637390,-775.07,0.00016712,2]
[329442528,1718346637402,-500.0,0.00016712,2]
[329442529,1718346637419,-500.0,0.00016712,2]
[329442530,1718346637436,-375.9453375,0.00016712,2]
[329442531,1718346637456,-500.0,0.00016712,2]
[329442532,1718346637468,-500.0,0.00016712,2]
[329442533,1718346637485,-500.0,0.00016712,2]
[329442534,1718346637519,-500.0,0.00016712,2]
[329442535,1718346637544,-898.56,0.00016712,2]
[329442536,1718346637558,-500.0,0.00016712,2]
[329442537,1718346637591,-580.7,0.00016712,2]
[329442538,1718346637602,-500.0,0.00016712,2]
[329442539,1718346637616,-500.0,0.00016712,2]
[329442540,1718346637639,-2249.44,0.00016712,2]
[329442541,1718346637657,-1667.09,0.00016712,2]
[329442542,1718346637671,-500.0,0.00016712,2]
[329442543,1718346637695,-500.0,0.00016712,2]
[329442544,1718346637713,-500.0,0.00016712,2]
[329442545,1718346637733,-500.0,0.00016712,2]
[329442546,1718346637746,-500.0,0.00016712,2]
[329442547,1718346637768,-1831.41,0.00016712,2]
[329442548,1718346637779,-1170.77,0.00016712,2]
[329442549,1718346637803,-500.0,0.00016712,2]
[329442550,1718346637816,-2460.60631159,0.00016818,2]
[329442551,1718346637831,-974.38,0.00016875,2]
[329442552,1718346637843,-399.11070632,0.00016876,2]
[329442553,1718346637860,-500.0,0.00016876,2]
[329442554,1718346637872,-515.09163507,0.00016876,2]
[329442555,1718346637889,-505.12037293,0.00016876,2]
[329442556,1718346637905,-503.5812846,0.00016876,2]
[329442557,1718346637925,-520.22437238,0.00016876,2]
[329442558,1718346637941,-505.07698032,0.00016876,2]
[329442559,1718346637953,-502.37546777,0.00016876,2]
[329442560,1718346637970,-500.88557575,0.00016876,2]
[329442561,1718346637980,-502.44730672,0.00016876,2]
[329442562,1718346637993,-508.55978542,0.00016876,2]
[329442563,1718346638006,-500.0,0.00016876,2]
[329442564,1718346638018,-500.0,0.00016876,2]
[329442565,1718346638031,-500.0,0.00016876,2]
[329442566,1718346638046,-505.25455518,0.00016876,2]
[329442567,1718346638057,-500.0,0.00016876,2]
[329442568,1718346638069,-528.95498767,0.00016876,2]
[329442569,1718346638094,-175.39898208,0.00016876,2]
[329442570,1718346638106,-500.0,0.00016876,2]
[329442571,1718346638121,-504.28783111,0.00016876,2]
[329442572,1718346638140,-500.0,0.00016876,2]
[329442573,1718346638160,-504.74449288,0.00016876,2]
[329442574,1718346638172,-507.73824537,0.00016876,2]
[329442575,1718346638186,-545.3363321,0.00016876,2]
[329442576,1718346638199,-500.0,0.00016876,2]
[329442577,1718346638214,-500.0,0.00016876,2]
[329442578,1718346638256,-505.1582091,0.00016876,2]
[329442579,1718346638287,-514.62968657,0.00016876,2]
[329442580,1718346638336,-500.0,0.00016876,2]
[329442581,1718346638370,-507.25014424,0.00016876,2]
[329442583,1718346638397,-507.81079732,0.00016876,2]
[329442585,1718346638408,-505.75567497,0.00016876,2]
[329442587,1718346638419,-402.88397875,0.00016876,2]
[329442588,1718346638430,-508.64284254,0.00016876,2]
[329442589,1718346638441,-510.61140715,0.00016876,2]
[329442590,1718346638453,-559.06780153,0.00016876,2]
[329442591,1718346638481,-500.0,0.00016876,4]
[329442592,1718346638497,-250.0,0.00016876,2]
[329442593,1718346638510,-633.11,0.00016876,2]
[329442594,1718346638527,-504.91901759,0.00016876,2]
[329442595,1718346638545,-587.49352963,0.00016876,2]
[329442596,1718346638557,-507.9048023,0.00016876,2]
[329442597,1718346638572,-500.0,0.00016876,2]
[329442598,1718346638592,-503.36605535,0.00016876,2]
[329442599,1718346638638,-215.89211872,0.00016877,2]
[329442600,1718346638693,-500.0,0.00016877,2]
[329442601,1718346638745,-500.0,0.00016877,2]
[329442602,1718346638770,-974.38,0.00016877,2]
[329442603,1718346638783,-974.38,0.00016877,2]
[329442604,1718346638800,-1327.72268293,0.00016878,15]
[329442605,1718346638814,-80000.0,0.00016878,2]
[329442606,1718346638844,-155.78733458,0.00016879,2]
[329442607,1718346638855,-142918.04070455,0.00016879,7]
[329442608,1718346638865,-522.21651391,0.00016986,2]
[329442609,1718346638876,-500.0,0.00016986,2]
[329442610,1718346638914,-500.0,0.00016986,2]
[329442611,1718346638926,-500.0,0.00016986,2]
[329442612,1718346638937,-500.0,0.00016986,2]
[329442613,1718346638969,-500.0,0.00016986,2]
[329442614,1718346638986,-500.0,0.00016986,2]
[329442615,1718346639061,-500.0,0.00016986,2]
[329442617,1718346639090,-500.0,0.00016986,2]
[329442618,1718346639107,-775.07,0.00016986,2]
[329442619,1718346639136,-500.0,0.00016986,2]
[329442620,1718346639152,-507.93413676,0.00016986,2]
[329442621,1718346639180,-500.0,0.00016986,2]
[329442622,1718346639216,-500.0,0.00016986,2]
[329442623,1718346639237,-500.0,0.00016986,2]
[329442624,1718346639249,-500.0,0.00016986,2]
[329442625,1718346639264,-898.56,0.00016986,2]
[329442626,1718346639289,-500.0,0.00016986,2]
[329442627,1718346639309,-580.7,0.00016986,2]
[329442628,1718346639344,-500.0,0.00016986,2]
[329442629,1718346639356,-500.0,0.00016986,2]
[329442630,1718346639396,-2249.44,0.00016986,2]
[329442631,1718346639408,-1667.09,0.00016986,2]
[329442632,1718346639419,-500.0,0.00016986,2]
[329442633,1718346639451,-500.0,0.00016986,2]
[329442634,1718346639464,-500.0,0.00016986,2]
[329442635,1718346639492,-500.0,0.00016986,2]
[329442636,1718346639591,-1170.77,0.00016986,2]
[329442638,1718346639603,-1831.41,0.00016986,2]
[329442640,1718346639645,-500.0,0.00016986,2]
[329442641,1718346639688,-2322.92022353,0.00017129,2]
[329442642,1718346639738,-500.0,0.0001715,2]
[329442644,1718346639760,-500.0,0.0001715,2]
[329442645,1718346639801,-508.68329794,0.0001715,2]
[329442647,1718346639820,-510.86343299,0.0001715,2]
[329442649,1718346639868,-527.76334794,0.0001715,2]
[329442650,1718346639879,-503.71556028,0.0001715,2]
[329442651,1718346639894,-500.0,0.0001715,4]
[329442652,1718346639909,-250.0,0.0001715,2]
[329442653,1718346639922,-633.11,0.0001715,2]
[329442654,1718346639934,-500.0,0.0001715,2]
[329442655,1718346639945,-500.0,0.0001726,2]
[329442656,1718346639963,-500.0,0.0001726,2]
[329442657,1718346639980,-500.0,0.0001726,2]
[329442658,1718346640008,-500.0,0.0001726,2]
[329442659,1718346640033,-500.0,0.0001726,2]
[329442660,1718346640064,-500.0,0.0001726,2]
[329442661,1718346640101,-172.52007797,0.0001726,2]
[329442662,1718346640129,-500.0,0.0001726,2]
[329442663,1718346640146,-775.07,0.0001726,2]
[329442664,1718346640169,-151.0,0.0001726,2]
[329442665,1718346640195,-500.0,0.0001726,2]
[329442666,1718346640272,-500.0,0.0001726,2]
[329442667,1718346640284,-500.0,0.0001726,2]
[329442668,1718346640297,-500.0,0.0001726,2]
[329442669,1718346640311,-500.0,0.0001726,2]
[329442670,1718346640327,-898.56,0.0001726,2]
[329442671,1718346640371,-500.0,0.0001726,2]
[329442672,1718346640402,-580.7,0.0001726,2]
[329442673,1718346640417,-151.0,0.0001726,2]
[329442674,1718346640443,-500.0,0.0001726,2]
[329442675,1718346640475,-151.0,0.0001726,2]
[329442676,1718346640511,-500.0,0.0001726,2]
[329442677,1718346640534,-2249.44,0.0001726,2]
[329442678,1718346640566,-1667.09,0.0001726,2]
[329442680,1718346640599,-500.0,0.0001726,2]
[329442682,1718346640640,-500.0,0.0001726,2]
[329442683,1718346640655,-500.0,0.0001726,2]
[329442684,1718346640689,-500.0,0.0001726,2]
[329442685,1718346640700,-1170.77,0.0001726,2]
[329442686,1718346640716,-1831.41,0.0001726,2]
[329442687,1718346640734,-500.0,0.0001726,2]
[329442688,1718346640748,-502.42828181,0.00017424,2]
[329442689,1718346640793,-510.8703217,0.00017424,2]
[329442690,1718346640832,-508.95272807,0.00017424,4]
[329442691,1718346640847,-250.0,0.00017424,2]
[329442692,1718346640882,-633.11,0.00017424,2]
[329442693,1718346640900,-500.0,0.00017424,2]
[329442694,1718346640912,-500.0,0.00017534,2]
[329442695,1718346640930,-500.0,0.00017534,2]
[329442696,1718346640943,-500.0,0.00017534,2]
[329442697,1718346640960,-500.0,0.00017534,2]
[329442698,1718346640982,-500.0,0.00017534,2]
[329442699,1718346641008,-500.0,0.00017534,2]
[329442700,1718346641029,-500.0,0.00017534,2]
[329442701,1718346641081,-775.07,0.00017534,2]
[329442702,1718346641104,-500.0,0.00017534,2]
[329442703,1718346641124,-500.0,0.00017534,2]
[329442704,1718346641172,-500.0,0.00017534,2]
[329442705,1718346641236,-500.0,0.00017534,2]
[329442706,1718346641259,-898.56,0.00017534,2]
[329442707,1718346641290,-500.0,0.00017534,2]
[329442708,1718346641306,-580.7,0.00017534,2]
[329442709,1718346641341,-500.0,0.00017534,2]
[329442710,1718346641358,-267.12796904,0.00017534,2]
[329442711,1718346641416,-2249.44,0.00017534,2]
[329442712,1718346641431,-1667.09,0.00017534,2]
[329442713,1718346641442,-500.0,0.00017534,2]
[329442714,1718346641456,-500.0,0.00017534,2]
[329442715,1718346641485,-500.0,0.00017534,2]
[329442716,1718346641519,-500.0,0.00017534,2]
[329442717,1718346641538,-1170.77,0.00017534,2]
[329442718,1718346641567,-1831.41,0.00017534,2]
[329442719,1718346641583,-500.0,0.00017534,2]
[329442720,1718346641611,-974.38,0.00017697,2]
[329442721,1718346641623,-250.0,0.00017698,2]
[329442722,1718346641645,-633.11,0.00017698,2]
[329442723,1718346641660,-500.0,0.00017698,2]
[329442724,1718346641685,-500.0,0.00017808,2]
[329442725,1718346641700,-500.0,0.00017808,2]
[329442726,1718346641715,-527.38753241,0.00017808,2]
[329442727,1718346641753,-500.0,0.00017808,2]
[329442728,1718346641770,-500.0,0.00017808,2]
[329442729,1718346641781,-500.0,0.00017808,2]
[329442730,1718346641806,-500.0,0.00017808,2]
[329442731,1718346641836,-775.07,0.00017808,2]
[329442732,1718346641871,-192.63403,0.00017808,2]
[329442733,1718346641882,-500.0,0.00017808,2]
[329442734,1718346641896,-500.0,0.00017808,2]
[329442735,1718346641907,-500.0,0.00017808,2]
[329442736,1718346641917,-500.0,0.00017808,2]
[329442737,1718346641929,-898.56,0.00017808,2]
[329442738,1718346641958,-500.0,0.00017808,2]
[329442739,1718346641970,-580.7,0.00017808,2]
[329442740,1718346641991,-151.0,0.00017808,2]
[329442741,1718346642006,-500.0,0.00017808,2]
[329442742,1718346642030,-151.0,0.00017808,2]
[329442743,1718346642099,-2249.44,0.00017808,2]
[329442744,1718346642117,-1667.09,0.00017808,2]
[329442745,1718346642139,-500.0,0.00017808,2]
[329442746,1718346642151,-500.0,0.00017808,2]
[329442747,1718346642316,-500.0,0.00017808,2]
[329442748,1718346642333,-500.0,0.00017808,2]
[329442749,1718346642359,-1170.77,0.00017808,2]
[329442750,1718346642369,-1831.41,0.00017808,2]
[329442751,1718346642381,-500.0,0.00017808,2]
[329442752,1718346642394,-587.0,0.00017839,2]
[329442753,1718346642405,-2322.92022353,0.00017872,2]
[329442754,1718346642436,-250.0,0.00017972,2]
[329442755,1718346642463,-633.11,0.00017972,2]
[329442756,1718346642491,-500.0,0.00017972,2]
[329442757,1718346642516,-2000.0,0.00017982,2]
[329442758,1718346642534,-877.05746171,0.00018,2]
[329442759,1718346642548,-476.83649049,0.00018,2]
[329442760,1718346642564,-2766.15696949,0.00018,2]
[329442761,1718346642579,-1355.95807405,0.00018,2]
[329442762,1718346642599,-155.18761683,0.00018,2]
[329442763,1718346642646,-220.61829016,0.00018,2]
[329442764,1718346642658,-151.0,0.00018,2]
[329442765,1718346642677,-523.835964,0.00018,2]
[329442766,1718346642692,-523.835964,0.00018,2]
[329442767,1718346642707,-782.75614503,0.0001805,2]
[329442768,1718346642719,-500.0,0.00018082,2]
[329442769,1718346642740,-500.0,0.00018082,2]
[329442770,1718346642773,-500.0,0.00018082,2]
[329442771,1718346642786,-500.0,0.00018082,2]
[329442772,1718346642805,-500.0,0.00018082,2]
[329442773,1718346642822,-151.0,0.00018082,2]
[329442774,1718346642844,-151.0,0.00018082,2]
[329442775,1718346642855,-500.0,0.00018082,2]
[329442776,1718346642878,-775.07,0.00018082,2]
[329442777,1718346642890,-500.0,0.00018082,2]
[329442778,1718346642907,-500.0,0.00018082,2]
[329442779,1718346642921,-500.0,0.00018082,2]
[329442780,1718346642933,-500.0,0.00018082,2]
[329442781,1718346642952,-898.56,0.00018082,2]
[329442782,1718346642979,-500.0,0.00018082,2]
[329442783,1718346642997,-580.7,0.00018082,2]
[329442784,1718346643010,-500.0,0.00018082,2]
[329442785,1718346643032,-2249.44,0.00018082,2]
[329442786,1718346643064,-1667.09,0.00018082,2]
[329442787,1718346643078,-500.0,0.00018082,2]
[329442788,1718346643094,-500.0,0.00018082,2]
[329442789,1718346643131,-500.0,0.00018082,2]
[329442790,1718346643151,-500.0,0.00018082,2]
[329442791,1718346643171,-1170.77,0.00018082,2]
[329442792,1718346643192,-1831.41,0.00018082,2]
[329442793,1718346643208,-500.0,0.00018082,2]
[329442794,1718346643223,-250.0,0.00018246,2]
[329442795,1718346643246,-633.11,0.00018246,2]
[329442796,1718346643271,-394.20352331,0.00018246,2]
[329442797,1718346643282,-151.0,0.00018246,2]
[329442798,1718346643311,-151.0,0.00018246,2]
[329442800,1718346643337,-160.0,0.00018264,2]
[329442801,1718346643372,-500.0,0.00018356,2]
[329442802,1718346643391,-500.0,0.00018356,2]
[329442803,1718346643406,-519.8091771,0.00018356,2]
[329442804,1718346643436,-500.0,0.00018356,2]
[329442805,1718346643461,-500.0,0.00018356,2]
[329442806,1718346643493,-500.0,0.00018356,2]
[329442807,1718346643507,-775.07,0.00018356,2]
[329442808,1718346643554,-500.0,0.00018356,2]
[329442809,1718346643566,-500.0,0.00018356,2]
[329442810,1718346643579,-500.0,0.00018356,2]
[329442811,1718346643590,-500.0,0.00018356,2]
[329442812,1718346643614,-898.56,0.00018356,2]
[329442813,1718346643637,-500.0,0.00018356,2]
[329442814,1718346643665,-580.7,0.00018356,2]
[329442815,1718346643696,-500.0,0.00018356,2]
[329442817,1718346643708,-2249.44,0.00018356,2]
[329442821,1718346643729,-1667.09,0.00018356,2]
[329442824,1718346643760,-500.0,0.00018356,2]
[329442826,1718346643773,-500.0,0.00018356,2]
[329442827,1718346643788,-500.0,0.00018356,2]
[329442829,1718346643803,-500.0,0.00018356,2]
[329442830,1718346643815,-1831.41,0.00018356,2]
[329442832,1718346643826,-1170.77,0.00018356,2]
[329442834,1718346643839,-500.0,0.00018356,2]
[329442836,1718346643856,-1314.25924463,0.00018386,2]
[329442838,1718346643873,-974.38,0.00018497,2]
[329442840,1718346643883,-455.71844826,0.00018498,2]
[329442842,1718346643896,-508.59675124,0.00018498,2]
[329442844,1718346643924,-502.73859859,0.00018498,2]
[329442846,1718346643934,-500.0,0.00018498,2]
[329442848,1718346643949,-500.0,0.00018498,2]
[329442850,1718346643961,-243.13578075,0.00018498,2]
[329442852,1718346643973,-500.0,0.00018498,2]
[329442854,1718346643990,-507.08318153,0.00018498,2]
[329442855,1718346644005,-612.58397855,0.00018498,2]
[329442857,1718346644030,-500.0,0.00018498,2]
[329442858,1718346644042,-151.0,0.00018498,2]
[329442859,1718346644056,-523.835964,0.00018498,2]
[329442861,1718346644072,-523.835964,0.00018498,2]
[329442863,1718346644083,-6751.86493708,0.00018499,2]
[329442865,1718346644121,-151.0,0.0001852,2]
[329442866,1718346644144,-151.0,0.0001852,2]
[329442868,1718346644168,-250.0,0.0001852,2]
[329442871,1718346644224,-633.11,0.0001852,2]
[329442874,1718346644277,-151.0,0.0001852,2]
[329442875,1718346644287,-288.864018,0.0001852,2]
[329442876,1718346644297,-500.0,0.0001863,2]
[329442877,1718346644308,-500.0,0.0001863,2]
[329442878,1718346644318,-500.0,0.0001863,2]
[329442879,1718346644329,-500.0,0.0001863,2]
[329442880,1718346644344,-775.07,0.0001863,2]
[329442881,1718346644355,-500.0,0.0001863,2]
[329442882,1718346644381,-500.0,0.0001863,2]
[329442883,1718346644391,-500.0,0.0001863,2]
[329442884,1718346644428,-898.56,0.0001863,2]
[329442885,1718346644443,-580.7,0.0001863,2]
[329442886,1718346644496,-500.0,0.0001863,2]
[329442888,1718346644507,-2249.44,0.0001863,2]
[329442889,1718346644519,-1667.09,0.0001863,2]
[329442890,1718346644545,-500.0,0.0001863,2]
[329442891,1718346644562,-500.0,0.0001863,2]
[329442892,1718346644590,-1831.41,0.0001863,2]
[329442893,1718346644615,-1170.77,0.0001863,2]
[329442895,1718346644638,-517.57383717,0.0001863,2]
[329442897,1718346644664,-500.0,0.00018771,2]
[329442899,1718346644698,-500.0,0.00018772,2]
[329442901,1718346644716,-500.0,0.00018772,2]
[329442902,1718346644733,-500.0,0.00018772,2]
[329442904,1718346644749,-500.0,0.00018772,2]
[329442906,1718346644773,-250.0,0.00018794,2]
[329442908,1718346644790,-633.11,0.00018794,2]
[329442910,1718346644808,-320.0,0.00018812,2]
[329442912,1718346644821,-1373.02049483,0.000189,2]
[329442914,1718346644839,-500.0,0.00018904,2]
[329442916,1718346644862,-500.0,0.00018904,2]
[329442918,1718346644872,-151.0,0.00018904,2]
[329442920,1718346644883,-775.07,0.00018904,2]
[329442922,1718346644919,-523.835964,0.00018904,2]
[329442924,1718346644935,-523.835964,0.00018904,2]
[329442927,1718346644968,-500.0,0.00018904,2]
[329442929,1718346644983,-500.0,0.00018904,2]
[329442931,1718346644994,-558.68,0.00018904,2]
[329442933,1718346645006,-898.56,0.00018904,2]
[329442935,1718346645019,-580.7,0.00018904,2]
[329442937,1718346645039,-2249.44,0.00018904,2]
[329442938,1718346645056,-1667.09,0.00018904,2]
[329442939,1718346645067,-500.0,0.00018904,2]
[329442941,1718346645084,-500.0,0.00018904,2]
[329442944,1718346645121,-1831.41,0.00018904,2]
[329442946,1718346645136,-1170.77,0.00018904,2]
[329442947,1718346645148,-974.38,0.00018999,2]
[329442948,1718346645159,-1000.0,0.00019,6]
[329442950,1718346645172,-163.19209839,0.00019,2]
[329442952,1718346645183,-500.0,0.00019046,2]
[329442954,1718346645197,-211.29476385,0.00019046,2]
[329442956,1718346645212,-500.0,0.00019046,2]
[329442958,1718346645226,-500.0,0.00019046,2]
[329442960,1718346645253,-151.0,0.00019046,2]
[329442962,1718346645265,-151.0,0.00019068,2]
[329442964,1718346645276,-151.0,0.00019068,2]
[329442966,1718346645288,-252.05933364,0.00019068,2]
[329442968,1718346645301,-633.11,0.00019068,2]
[329442970,1718346645312,-88888.0,0.00019073,2]
[329442971,1718346645327,-151.0,0.00019073,2]
[329442973,1718346645337,-151.0,0.00019073,2]
[329442975,1718346645349,-151.0,0.00019073,2]
[329442977,1718346645360,-523.835964,0.00019073,2]
[329442978,1718346645372,-523.835964,0.00019073,2]
[329442980,1718346645383,-504.23217899,0.00019075,2]
[329442981,1718346645397,-364.98187584,0.00019075,2]
[329442983,1718346645417,-974.38,0.00019169,2]
[329442985,1718346645451,-21736.33694055,0.0001917,2]
[329442987,1718346645485,-3200.0,0.0001917,2]
[329442989,1718346645505,-3200.0,0.0001917,2]
[329442991,1718346645516,-3200.0,0.0001917,2]
[329442992,1718346645540,-3200.0,0.0001917,2]
[329442993,1718346645556,-2200.0,0.0001917,2]
[329442994,1718346645569,-500.0,0.0001917,2]
[329442995,1718346645583,-151.0,0.0001917,2]
[329442996,1718346645607,-151.0,0.0001917,2]
[329442997,1718346645618,-151.0,0.0001917,2]
[329442998,1718346645631,-523.835964,0.0001917,2]
[329442999,1718346645648,-523.835964,0.0001917,2]
[329443000,1718346645659,-1509.87337537,0.00019171,2]
[329443001,1718346645670,-519.08939758,0.00019171,2]
[329443002,1718346645683,-948.21053722,0.00019171,2]
[329443003,1718346645703,-293.11961162,0.00019171,2]
[329443004,1718346645730,-258.05832098,0.00019171,2]
[329443005,1718346645768,-155.39961015,0.00019171,2]
[329443006,1718346645781,-925.94235348,0.00019171,2]
[329443007,1718346645795,-1449.48911185,0.00019171,2]
[329443008,1718346645811,-591.88746082,0.00019171,2]
[329443009,1718346645839,-156.24445227,0.00019171,2]
[329443010,1718346645864,-191.66406551,0.00019171,2]
[329443011,1718346645880,-586.8607667,0.00019171,2]
[329443012,1718346645896,-287.97188045,0.00019171,2]
[329443013,1718346645919,-190.19503775,0.00019171,2]
[329443014,1718346645943,-164.82380778,0.00019171,2]